[Event "Late-Titled-Tuesday-Blitz-June-25-2024"]
[Site "Chess.com"]
[Date "2024.06.25"]
[Round "3"]
[White "GAZZAN_3000"]
[Black "Artyom_ChessMate"]
[Result "0-1"]
[WhiteElo "2746"]
[BlackElo "2555"]
[TimeControl "180+1"]
[EndTime "14:28:48 PDT"]
[Termination "Artyom_ChessMate won by resignation"]

1. d4 {[%clk 0:03:00.9]} 1... d5 {[%clk 0:02:59.9]} 2. Nf3 {[%clk 0:03:01.2]}
2... Nf6 {[%clk 0:03:00]} 3. c4 {[%clk 0:03:01.6]} 3... e6 {[%clk 0:03:00.2]} 4.
Nc3 {[%clk 0:03:01.9]} 4... c5 {[%clk 0:03:00.4]} 5. cxd5 {[%clk 0:03:01.4]}
5... Nxd5 {[%clk 0:03:01.3]} 6. e4 {[%clk 0:03:00.3]} 6... Nxc3 {[%clk
0:03:01.8]} 7. bxc3 {[%clk 0:03:01.1]} 7... cxd4 {[%clk 0:03:02.7]} 8. cxd4
{[%clk 0:03:01.8]} 8... Bb4+ {[%clk 0:03:03.2]} 9. Bd2 {[%clk 0:03:02.3]} 9...
Bxd2+ {[%clk 0:03:04.1]} 10. Qxd2 {[%clk 0:03:02.8]} 10... O-O {[%clk 0:03:05]}
11. Bd3 {[%clk 0:02:58.4]} 11... Nc6 {[%clk 0:03:02.9]} 12. e5 {[%clk
0:02:50.7]} 12... Qa5 {[%clk 0:03:02.2]} 13. Qxa5 {[%clk 0:02:43.2]} 13... Nxa5
{[%clk 0:03:03.1]} 14. Ke2 {[%clk 0:02:41.6]} 14... Bd7 {[%clk 0:03:03.1]} 15.
Ke3 {[%clk 0:02:40.2]} 15... Rac8 {[%clk 0:03:01.5]} 16. Rhc1 {[%clk 0:02:39.2]}
16... Bc6 {[%clk 0:02:59.7]} 17. Be4 {[%clk 0:02:25.7]} 17... Rfd8 {[%clk
0:02:56.5]} 18. Bxc6 {[%clk 0:02:09.6]} 18... Nxc6 {[%clk 0:02:57.4]} 19. Rab1
{[%clk 0:02:09.7]} 19... Rd7 {[%clk 0:02:52.6]} 20. Rc4 {[%clk 0:01:55.5]} 20...
Rcd8 {[%clk 0:02:52]} 21. Ra4 {[%clk 0:01:51.7]} 21... a6 {[%clk 0:02:49]} 22.
Rb6 {[%clk 0:01:50]} 22... Ne7 {[%clk 0:02:48.7]} 23. Rb2 {[%clk 0:01:47]} 23...
Nd5+ {[%clk 0:02:38.5]} 24. Kd3 {[%clk 0:01:46.8]} 24... Nf4+ {[%clk 0:02:37.8]}
25. Ke4 {[%clk 0:01:47]} 25... Nd5 {[%clk 0:02:29.6]} 26. Rc2 {[%clk 0:01:45]}
26... h6 {[%clk 0:01:49]} 27. Rac4 {[%clk 0:01:41.6]} 27... g5 {[%clk
0:01:44.9]} 28. g3 {[%clk 0:01:36.6]} 28... Kg7 {[%clk 0:01:44.6]} 29. a3 {[%clk
0:01:31.9]} 29... Ne7 {[%clk 0:01:37]} 30. Rc7 {[%clk 0:01:25.9]} 30... Nc6
{[%clk 0:01:36.3]} 31. Rxd7 {[%clk 0:01:19.2]} 31... Rxd7 {[%clk 0:01:37.2]} 32.
Rc5 {[%clk 0:01:16.4]} 32... g4 {[%clk 0:01:35.7]} 33. Ne1 {[%clk 0:01:03.4]}
33... Rxd4+ {[%clk 0:01:35.4]} 34. Ke3 {[%clk 0:01:03.2]} 34... Ra4 {[%clk
0:01:33.9]} 35. Nd3 {[%clk 0:00:48.9]} 35... Rxa3 {[%clk 0:01:32.3]} 36. Ke4
{[%clk 0:00:42.1]} 36... a5 {[%clk 0:01:27.7]} 37. Rb5 {[%clk 0:00:40.4]} 37...
Ra4+ {[%clk 0:01:17.2]} 38. Ke3 {[%clk 0:00:40.2]} 38... Nb4 {[%clk 0:01:16.2]}
39. Nf4 {[%clk 0:00:34]} 39... Ra3+ {[%clk 0:01:13.8]} 40. Ke4 {[%clk
0:00:30.6]} 40... Ra1 {[%clk 0:00:45.3]} 41. Rxb7 {[%clk 0:00:26]} 41... Re1+
{[%clk 0:00:44.9]} 42. Kd4 {[%clk 0:00:24.6]} 42... Nc6+ {[%clk 0:00:31.5]} 43.
Kc5 {[%clk 0:00:24.6]} 43... Nxe5 {[%clk 0:00:29.5]} 44. Nxe6+ {[%clk 0:00:25]}
44... Kf6 {[%clk 0:00:29.6]} 45. Nf4 {[%clk 0:00:25.5]} 45... Rc1+ {[%clk
0:00:27.3]} 46. Kd5 {[%clk 0:00:24.9]} 46... Rd1+ {[%clk 0:00:27.4]} 47. Ke4
{[%clk 0:00:24.2]} 47... Re1+ {[%clk 0:00:25]} 48. Kd5 {[%clk 0:00:24.3]} 48...
Nf3 {[%clk 0:00:25.4]} 49. Rb6+ {[%clk 0:00:22.3]} 49... Kg7 {[%clk 0:00:25.3]}
50. Nh5+ {[%clk 0:00:21.3]} 50... Kf8 {[%clk 0:00:21.6]} 51. Rb8+ {[%clk
0:00:17.1]} 51... Ke7 {[%clk 0:00:21.6]} 52. Rb7+ {[%clk 0:00:17.7]} 52... Ke8
{[%clk 0:00:22]} 53. Nf6+ {[%clk 0:00:16.7]} 53... Kf8 {[%clk 0:00:20.5]} 54.
Nxg4 {[%clk 0:00:16.9]} 54... h5 {[%clk 0:00:21]} 55. Nf6 {[%clk 0:00:16]} 55...
Re5+ {[%clk 0:00:20.2]} 56. Kd6 {[%clk 0:00:16.1]} 56... Re6+ {[%clk 0:00:20.3]}
57. Kd5 {[%clk 0:00:16.7]} 57... Rxf6 {[%clk 0:00:21.2]} 58. h4 {[%clk 0:00:15]}
58... Kg7 {[%clk 0:00:20.9]} 59. Ra7 {[%clk 0:00:14.9]} 59... Kg6 {[%clk
0:00:21]} 60. Ke4 {[%clk 0:00:15.4]} 60... Nd2+ {[%clk 0:00:18.4]} 61. Kd3
{[%clk 0:00:14.9]} 61... Nb3 {[%clk 0:00:18.5]} 62. f4 {[%clk 0:00:13.3]} 62...
Kf5 {[%clk 0:00:10.6]} 63. Ra8 {[%clk 0:00:11.9]} 63... Nc5+ {[%clk 0:00:07.7]}
64. Ke3 {[%clk 0:00:10.4]} 64... Re6+ {[%clk 0:00:07.4]} 65. Kf3 {[%clk
0:00:10.6]} 65... Ra6 {[%clk 0:00:07.4]} 66. Rg8 {[%clk 0:00:10.2]} 66... Ne6
{[%clk 0:00:03.8]} 67. Rh8 {[%clk 0:00:09.9]} 67... a4 {[%clk 0:00:03.7]} 68.
Rxh5+ {[%clk 0:00:09.9]} 68... Kf6 {[%clk 0:00:04.4]} 69. Rd5 {[%clk 0:00:08.8]}
69... a3 {[%clk 0:00:04.5]} 70. Rd1 {[%clk 0:00:09.5]} 70... a2 {[%clk
0:00:05.1]} 71. Ra1 {[%clk 0:00:10.2]} 71... Nd4+ {[%clk 0:00:05.7]} 72. Kg4
{[%clk 0:00:10.9]} 72... Nb3 {[%clk 0:00:06.6]} 73. Rxa2 {[%clk 0:00:10.9]}
73... Rxa2 {[%clk 0:00:07.5]} 74. h5 {[%clk 0:00:11.3]} 74... Ra4 {[%clk
0:00:06.8]} 75. h6 {[%clk 0:00:11.3]} 75... Kg6 {[%clk 0:00:07.2]} 0-1

[Event "Late-Titled-Tuesday-Blitz-June-25-2024"]
[Site "Chess.com"]
[Date "2024.06.25"]
[Round "3"]
[White "Zurability"]
[Black "mishanick"]
[Result "0-1"]
[WhiteElo "2769"]
[BlackElo "3166"]
[TimeControl "180+1"]
[EndTime "14:28:57 PDT"]
[Termination "mishanick won on time"]

1. e4 {[%clk 0:03:00]} 1... c5 {[%clk 0:02:55.2]} 2. Nf3 {[%clk 0:02:59.7]} 2...
e6 {[%clk 0:02:55.7]} 3. d3 {[%clk 0:02:52.8]} 3... Nc6 {[%clk 0:02:54.9]} 4. g3
{[%clk 0:02:52.5]} 4... g6 {[%clk 0:02:54.2]} 5. Bg2 {[%clk 0:02:52.9]} 5... Bg7
{[%clk 0:02:54.8]} 6. O-O {[%clk 0:02:53.4]} 6... Nge7 {[%clk 0:02:55.5]} 7. Nc3
{[%clk 0:02:39.8]} 7... d5 {[%clk 0:02:54.7]} 8. Bf4 {[%clk 0:02:33]} 8... d4
{[%clk 0:02:50.2]} 9. Ne2 {[%clk 0:02:31.8]} 9... e5 {[%clk 0:02:50]} 10. Bd2
{[%clk 0:02:32.4]} 10... O-O {[%clk 0:02:49.5]} 11. h3 {[%clk 0:02:27.7]} 11...
f5 {[%clk 0:02:49.8]} 12. exf5 {[%clk 0:02:08.8]} 12... gxf5 {[%clk 0:02:47.3]}
13. Nh2 {[%clk 0:02:03.1]} 13... Be6 {[%clk 0:02:47.2]} 14. f4 {[%clk 0:02:03]}
14... Bd5 {[%clk 0:02:47.1]} 15. fxe5 {[%clk 0:01:59.8]} 15... Bxg2 {[%clk
0:02:46.4]} 16. Kxg2 {[%clk 0:02:00.7]} 16... Qd5+ {[%clk 0:02:46.4]} 17. Nf3
{[%clk 0:02:00.3]} 17... Nxe5 {[%clk 0:02:46.7]} 18. Nf4 {[%clk 0:02:00.3]}
18... Qc6 {[%clk 0:02:47.3]} 19. Kh2 {[%clk 0:01:56.8]} 19... N7g6 {[%clk
0:02:44.7]} 20. Nh5 {[%clk 0:01:47.9]} 20... Rae8 {[%clk 0:02:42.6]} 21. Nxg7
{[%clk 0:01:35.2]} 21... Nxf3+ {[%clk 0:02:42.9]} 22. Rxf3 {[%clk 0:01:30.5]}
22... Kxg7 {[%clk 0:02:42.9]} 23. Rf2 {[%clk 0:01:28.4]} 23... Re5 {[%clk
0:02:41.3]} 24. Qh1 {[%clk 0:01:23.3]} 24... Qxh1+ {[%clk 0:02:34.1]} 25. Rxh1
{[%clk 0:01:19.9]} 25... Rfe8 {[%clk 0:02:34.6]} 26. Kg2 {[%clk 0:01:19.5]}
26... Re2 {[%clk 0:02:34.3]} 27. Kf3 {[%clk 0:01:19.4]} 27... Rxf2+ {[%clk
0:02:34.2]} 28. Kxf2 {[%clk 0:01:20.3]} 28... h5 {[%clk 0:02:32.9]} 29. Rb1
{[%clk 0:01:05.3]} 29... b5 {[%clk 0:02:28.5]} 30. Bg5 {[%clk 0:00:57.5]} 30...
Kf7 {[%clk 0:02:28.2]} 31. Rc1 {[%clk 0:00:54.8]} 31... c4 {[%clk 0:02:23.7]}
32. Rd1 {[%clk 0:00:49]} 32... cxd3 {[%clk 0:01:57.5]} 33. Rxd3 {[%clk
0:00:47.6]} 33... Rc8 {[%clk 0:01:57.9]} 34. Rxd4 {[%clk 0:00:31.8]} 34... Rxc2+
{[%clk 0:01:57.3]} 35. Rd2 {[%clk 0:00:32.5]} 35... Rxd2+ {[%clk 0:01:47.2]} 36.
Bxd2 {[%clk 0:00:33.4]} 36... Ke6 {[%clk 0:01:47.7]} 37. Ke3 {[%clk 0:00:31.5]}
37... Kd5 {[%clk 0:01:48.2]} 38. Bc3 {[%clk 0:00:31.9]} 38... Kc4 {[%clk
0:01:44.9]} 39. Bf6 {[%clk 0:00:31.6]} 39... a5 {[%clk 0:01:44.2]} 40. Bc3
{[%clk 0:00:24.5]} 40... b4 {[%clk 0:01:41.7]} 41. Bf6 {[%clk 0:00:25]} 41... a4
{[%clk 0:01:42.2]} 42. Bg7 {[%clk 0:00:21.8]} 42... b3 {[%clk 0:01:29.6]} 43. a3
{[%clk 0:00:20.2]} 43... Ne7 {[%clk 0:01:11.6]} 44. Kf4 {[%clk 0:00:19.5]} 44...
Kd3 {[%clk 0:01:12.2]} 45. Kg5 {[%clk 0:00:16.9]} 45... h4 {[%clk 0:01:08]} 46.
gxh4 {[%clk 0:00:15.4]} 46... Ke4 {[%clk 0:00:43.6]} 47. h5 {[%clk 0:00:14.3]}
47... f4 {[%clk 0:00:44.2]} 48. h6 {[%clk 0:00:09.9]} 48... f3 {[%clk
0:00:44.7]} 49. h7 {[%clk 0:00:05.5]} 49... f2 {[%clk 0:00:44.9]} 50. h8=Q
{[%clk 0:00:06.1]} 50... f1=Q {[%clk 0:00:45.4]} 51. Qa8+ {[%clk 0:00:06.7]}
51... Ke3 {[%clk 0:00:36.9]} 52. Qa7+ {[%clk 0:00:06.7]} 52... Kd2 {[%clk
0:00:37.1]} 53. Qxe7 {[%clk 0:00:07.1]} 53... Kc1 {[%clk 0:00:36.9]} 54. Qe4
{[%clk 0:00:04.5]} 54... Qxh3 {[%clk 0:00:29.1]} 55. Bc3 {[%clk 0:00:03.9]}
55... Qd3 {[%clk 0:00:16.6]} 56. Qe1+ {[%clk 0:00:03.2]} 56... Kc2 {[%clk
0:00:16.5]} 57. Qh4 {[%clk 0:00:03.1]} 57... Qd8+ {[%clk 0:00:15.7]} 58. Kh5
{[%clk 0:00:02.8]} 58... Qe8+ {[%clk 0:00:15.3]} 59. Kg4 {[%clk 0:00:03.2]}
59... Qe4+ {[%clk 0:00:15.2]} 60. Kh3 {[%clk 0:00:03.7]} 60... Qh1+ {[%clk
0:00:15.2]} 61. Kg3 {[%clk 0:00:03.6]} 61... Qg1+ {[%clk 0:00:15.4]} 62. Kf3
{[%clk 0:00:03.8]} 62... Qd1+ {[%clk 0:00:14.7]} 63. Ke4 {[%clk 0:00:03.1]}
63... Qd3+ {[%clk 0:00:14.6]} 64. Ke5 {[%clk 0:00:03.6]} 64... Qb5+ {[%clk
0:00:14.7]} 65. Kf6 {[%clk 0:00:03.4]} 65... Qc6+ {[%clk 0:00:14.2]} 66. Kg7
{[%clk 0:00:03.9]} 66... Qd7+ {[%clk 0:00:14.2]} 67. Kh6 {[%clk 0:00:03.9]}
67... Qe6+ {[%clk 0:00:12.2]} 68. Qf6 {[%clk 0:00:04.4]} 68... Qh3+ {[%clk
0:00:12.2]} 69. Kg6 {[%clk 0:00:04.8]} 69... Qg4+ {[%clk 0:00:11.6]} 70. Qg5
{[%clk 0:00:05.3]} 70... Qe6+ {[%clk 0:00:11.9]} 71. Bf6 {[%clk 0:00:03.6]}
71... Qg8+ {[%clk 0:00:10.8]} 72. Kf5 {[%clk 0:00:03.2]} 72... Qd5+ {[%clk
0:00:10.8]} 73. Kf4 {[%clk 0:00:03.4]} 73... Qd2+ {[%clk 0:00:10.8]} 74. Kg3
{[%clk 0:00:03.1]} 74... Qxg5+ {[%clk 0:00:10.4]} 75. Bxg5 {[%clk 0:00:02.7]}
75... Kxb2 {[%clk 0:00:11.3]} 76. Kf3 {[%clk 0:00:02.8]} 76... Kxa3 {[%clk
0:00:10.8]} 77. Bf6 {[%clk 0:00:02.7]} 77... b2 {[%clk 0:00:11.3]} 0-1

[Event "Late-Titled-Tuesday-Blitz-June-25-2024"]
[Site "Chess.com"]
[Date "2024.06.25"]
[Round "3"]
[White "Fore_Man"]
[Black "Yurovskykh_Oleksandr"]
[Result "0-1"]
[WhiteElo "2201"]
[BlackElo "2620"]
[TimeControl "180+1"]
[EndTime "14:28:57 PDT"]
[Termination "Yurovskykh_Oleksandr won by resignation"]

1. Nf3 {[%clk 0:03:00.9]} 1... d5 {[%clk 0:02:56.9]} 2. g3 {[%clk 0:03:01.8]}
2... Bg4 {[%clk 0:02:55.9]} 3. Bg2 {[%clk 0:03:02.1]} 3... Nd7 {[%clk
0:02:55.8]} 4. d4 {[%clk 0:03:01.6]} 4... e6 {[%clk 0:02:56]} 5. Nbd2 {[%clk
0:03:00.2]} 5... Ngf6 {[%clk 0:02:55.7]} 6. c3 {[%clk 0:02:59.3]} 6... Be7
{[%clk 0:02:52.3]} 7. O-O {[%clk 0:02:59.3]} 7... O-O {[%clk 0:02:52.2]} 8. Re1
{[%clk 0:02:59.1]} 8... c6 {[%clk 0:02:48.4]} 9. Qc2 {[%clk 0:02:54.8]} 9... Bf5
{[%clk 0:02:45.9]} 10. Qd1 {[%clk 0:02:54.5]} 10... Ne4 {[%clk 0:02:38.2]} 11.
Nxe4 {[%clk 0:02:53.9]} 11... Bxe4 {[%clk 0:02:39.1]} 12. Nd2 {[%clk 0:02:52.9]}
12... Bxg2 {[%clk 0:02:38.4]} 13. Kxg2 {[%clk 0:02:53.8]} 13... c5 {[%clk
0:02:23.5]} 14. e3 {[%clk 0:02:45.8]} 14... Qc7 {[%clk 0:02:19.1]} 15. Qe2
{[%clk 0:02:45]} 15... Nf6 {[%clk 0:02:12.6]} 16. e4 {[%clk 0:02:28.2]} 16...
cxd4 {[%clk 0:02:05]} 17. cxd4 {[%clk 0:02:15.9]} 17... dxe4 {[%clk 0:02:03]}
18. Nxe4 {[%clk 0:02:16.8]} 18... Qc6 {[%clk 0:01:48.5]} 19. Qf3 {[%clk
0:02:16]} 19... Nxe4 {[%clk 0:01:46.2]} 20. Qxe4 {[%clk 0:02:15]} 20... Qxe4+
{[%clk 0:01:45]} 21. Rxe4 {[%clk 0:02:15.9]} 21... Rfd8 {[%clk 0:01:40.9]} 22.
Bd2 {[%clk 0:02:11.9]} 22... Rac8 {[%clk 0:01:39.3]} 23. Bc3 {[%clk 0:02:11.9]}
23... Bf6 {[%clk 0:01:37.8]} 24. Kf3 {[%clk 0:02:10.9]} 24... Rd5 {[%clk
0:01:36.3]} 25. Ke3 {[%clk 0:02:09.6]} 25... h5 {[%clk 0:01:29.5]} 26. f4 {[%clk
0:02:07.6]} 26... g6 {[%clk 0:01:28.3]} 27. Kd3 {[%clk 0:02:05.2]} 27... Kg7
{[%clk 0:01:24.5]} 28. h3 {[%clk 0:02:05.4]} 28... a6 {[%clk 0:01:03.6]} 29.
Rae1 {[%clk 0:01:50.3]} 29... Rcd8 {[%clk 0:01:01.8]} 30. R1e2 {[%clk
0:01:47.6]} 30... g5 {[%clk 0:00:59.5]} 31. fxg5 {[%clk 0:01:43.9]} 31... Rxg5
{[%clk 0:01:00.4]} 32. g4 {[%clk 0:01:41.6]} 32... hxg4 {[%clk 0:00:57.5]} 33.
hxg4 {[%clk 0:01:42.5]} 33... Rgd5 {[%clk 0:00:54.2]} 34. Kc4 {[%clk 0:01:40.4]}
34... Rc8+ {[%clk 0:00:45.8]} 35. Kd3 {[%clk 0:01:39.9]} 35... Rh8 {[%clk
0:00:46.1]} 36. a3 {[%clk 0:01:29]} 36... Rh3+ {[%clk 0:00:42.8]} 37. R2e3
{[%clk 0:01:28.9]} 37... Rxe3+ {[%clk 0:00:34.4]} 38. Kxe3 {[%clk 0:01:29.8]}
38... Bg5+ {[%clk 0:00:31.2]} 39. Kf3 {[%clk 0:01:29.7]} 39... Kf6 {[%clk
0:00:28.6]} 40. Re2 {[%clk 0:01:12.6]} 40... Bc1 {[%clk 0:00:24.6]} 41. Ke4
{[%clk 0:01:09.3]} 41... Kg6 {[%clk 0:00:18.6]} 42. Kd3 {[%clk 0:00:59.6]} 42...
Bh6 {[%clk 0:00:17.5]} 43. Ke4 {[%clk 0:00:59.1]} 43... Bg7 {[%clk 0:00:17.2]}
44. Rg2 {[%clk 0:00:56.3]} 44... Bf6 {[%clk 0:00:15.3]} 45. Rd2 {[%clk
0:00:50.9]} 45... Bh8 {[%clk 0:00:14.6]} 46. Rh2 {[%clk 0:00:49.8]} 46... Bg7
{[%clk 0:00:14.6]} 47. Rf2 {[%clk 0:00:38.9]} 47... Rg5 {[%clk 0:00:14]} 48. Kf3
{[%clk 0:00:38.1]} 48... Rd5 {[%clk 0:00:10.5]} 49. Ke4 {[%clk 0:00:37.9]} 49...
Bf8 {[%clk 0:00:06.7]} 50. Rh2 {[%clk 0:00:34.4]} 50... Bh6 {[%clk 0:00:06]} 51.
Rf2 {[%clk 0:00:28.6]} 51... Bg7 {[%clk 0:00:03.7]} 52. Rh2 {[%clk 0:00:27.4]}
52... Rb5 {[%clk 0:00:04.3]} 53. Rf2 {[%clk 0:00:24.8]} 53... Rd5 {[%clk
0:00:04.8]} 54. Rh2 {[%clk 0:00:24.1]} 54... Bf6 {[%clk 0:00:05.5]} 55. Rf2
{[%clk 0:00:22.5]} 55... Kg7 {[%clk 0:00:05.8]} 56. Rh2 {[%clk 0:00:21.7]} 56...
Bg5 {[%clk 0:00:06.3]} 57. Rh5 {[%clk 0:00:20.8]} 57... Kg6 {[%clk 0:00:05.6]}
58. Rh8 {[%clk 0:00:19.4]} 58... Bf6 {[%clk 0:00:06]} 59. Rb8 {[%clk 0:00:19.2]}
59... Rd7 {[%clk 0:00:05.9]} 60. a4 {[%clk 0:00:17.8]} 60... Be7 {[%clk
0:00:05.9]} 61. Rc8 {[%clk 0:00:14.9]} 61... Bd6 {[%clk 0:00:06.1]} 62. Kf3
{[%clk 0:00:14.5]} 62... Kh7 {[%clk 0:00:06]} 63. Ke4 {[%clk 0:00:09.7]} 63...
f6 {[%clk 0:00:06.4]} 64. Kf3 {[%clk 0:00:09.9]} 64... Kg7 {[%clk 0:00:06.7]}
65. Re8 {[%clk 0:00:10.2]} 65... Kf7 {[%clk 0:00:06.9]} 66. Rh8 {[%clk
0:00:10.9]} 66... Bf8 {[%clk 0:00:07.3]} 67. Rh1 {[%clk 0:00:09.9]} 67... Bg7
{[%clk 0:00:07.3]} 68. Ke4 {[%clk 0:00:09.5]} 68... Kg6 {[%clk 0:00:07.6]} 69.
Rf1 {[%clk 0:00:07.4]} 69... Rd5 {[%clk 0:00:08]} 70. Kf3 {[%clk 0:00:07.8]}
70... b5 {[%clk 0:00:08.4]} 71. axb5 {[%clk 0:00:06.4]} 71... axb5 {[%clk
0:00:09.3]} 72. Re1 {[%clk 0:00:06.7]} 72... Kf7 {[%clk 0:00:09]} 73. Kf4 {[%clk
0:00:06.9]} 73... Bf8 {[%clk 0:00:09.2]} 74. Re4 {[%clk 0:00:06.8]} 74... b4
{[%clk 0:00:09.4]} 75. Bxb4 {[%clk 0:00:06.6]} 75... Bxb4 {[%clk 0:00:09.1]} 76.
Re2 {[%clk 0:00:07.2]} 76... Bd6+ {[%clk 0:00:08.9]} 77. Kf3 {[%clk 0:00:08.1]}
77... Rxd4 {[%clk 0:00:08.8]} 0-1

[Event "Late-Titled-Tuesday-Blitz-June-25-2024"]
[Site "Chess.com"]
[Date "2024.06.25"]
[Round "3"]
[White "SchmakAttack"]
[Black "Nf3c5"]
[Result "1/2-1/2"]
[WhiteElo "2867"]
[BlackElo "2637"]
[TimeControl "180+1"]
[EndTime "14:28:59 PDT"]
[Termination "Game drawn by repetition"]

1. e4 {[%clk 0:02:59.2]} 1... c5 {[%clk 0:03:00.2]} 2. Nf3 {[%clk 0:02:59.1]}
2... Nc6 {[%clk 0:03:00.5]} 3. d4 {[%clk 0:02:56.6]} 3... cxd4 {[%clk 0:03:01]}
4. Nxd4 {[%clk 0:02:57.5]} 4... e5 {[%clk 0:03:00.8]} 5. Nb5 {[%clk 0:02:57.4]}
5... d6 {[%clk 0:03:01.1]} 6. N1c3 {[%clk 0:02:57.4]} 6... a6 {[%clk 0:03:01.6]}
7. Na3 {[%clk 0:02:57.8]} 7... Be6 {[%clk 0:03:02.5]} 8. Be3 {[%clk 0:02:53.3]}
8... b5 {[%clk 0:02:55.3]} 9. Nd5 {[%clk 0:02:52.6]} 9... Rb8 {[%clk 0:02:49]}
10. c4 {[%clk 0:02:29.4]} 10... b4 {[%clk 0:02:24.1]} 11. Nc2 {[%clk 0:02:29.2]}
11... Nf6 {[%clk 0:02:20.8]} 12. Bd3 {[%clk 0:02:21.4]} 12... Be7 {[%clk
0:02:06.8]} 13. a3 {[%clk 0:02:11.5]} 13... bxa3 {[%clk 0:01:55.2]} 14. Rxa3
{[%clk 0:01:53.6]} 14... a5 {[%clk 0:01:55.2]} 15. b3 {[%clk 0:01:43.4]} 15...
O-O {[%clk 0:01:53.1]} 16. O-O {[%clk 0:01:43.4]} 16... Nd7 {[%clk 0:01:52.3]}
17. Qd2 {[%clk 0:01:36.3]} 17... h6 {[%clk 0:01:47.7]} 18. g3 {[%clk 0:01:31.9]}
18... Nc5 {[%clk 0:01:45.2]} 19. Bxc5 {[%clk 0:01:11.7]} 19... dxc5 {[%clk
0:01:43]} 20. f4 {[%clk 0:01:12.6]} 20... f5 {[%clk 0:01:23.8]} 21. exf5 {[%clk
0:01:03.6]} 21... Bxf5 {[%clk 0:01:20.8]} 22. Bxf5 {[%clk 0:00:59.9]} 22... Rxf5
{[%clk 0:01:20.5]} 23. Nxe7+ {[%clk 0:00:49.6]} 23... Nxe7 {[%clk 0:01:05.6]}
24. Qxd8+ {[%clk 0:00:48.6]} 24... Rxd8 {[%clk 0:01:05.4]} 25. Ne3 {[%clk
0:00:44.3]} 25... Rf7 {[%clk 0:00:58.7]} 26. fxe5 {[%clk 0:00:44.1]} 26... Nc6
{[%clk 0:00:54.5]} 27. Nd5 {[%clk 0:00:19]} 27... Rxf1+ {[%clk 0:00:40.2]} 28.
Kxf1 {[%clk 0:00:19.9]} 28... Re8 {[%clk 0:00:40.4]} 29. Ra2 {[%clk 0:00:19]}
29... Rxe5 {[%clk 0:00:41]} 30. Kf2 {[%clk 0:00:19.6]} 30... Kf7 {[%clk
0:00:39.3]} 31. h4 {[%clk 0:00:19.5]} 31... g5 {[%clk 0:00:34.1]} 32. hxg5
{[%clk 0:00:12.6]} 32... hxg5 {[%clk 0:00:33.7]} 33. Ne3 {[%clk 0:00:13.2]}
33... Ke6 {[%clk 0:00:24.3]} 34. g4 {[%clk 0:00:13]} 34... Re4 {[%clk
0:00:23.8]} 35. Kf3 {[%clk 0:00:13.6]} 35... Rf4+ {[%clk 0:00:23.9]} 36. Kg3
{[%clk 0:00:14.3]} 36... Nd4 {[%clk 0:00:21.6]} 37. Rxa5 {[%clk 0:00:13.1]}
37... Rf3+ {[%clk 0:00:21.8]} 38. Kg2 {[%clk 0:00:12.7]} 38... Rxe3 {[%clk
0:00:21.5]} 39. Rxc5 {[%clk 0:00:13.2]} 39... Kf6 {[%clk 0:00:21]} 40. b4 {[%clk
0:00:13.2]} 40... Rb3 {[%clk 0:00:18.8]} 41. b5 {[%clk 0:00:13.1]} 41... Ne6
{[%clk 0:00:19.4]} 42. Rf5+ {[%clk 0:00:12]} 42... Kg6 {[%clk 0:00:19.3]} 43.
Re5 {[%clk 0:00:12.6]} 43... Nf4+ {[%clk 0:00:19.2]} 44. Kh1 {[%clk 0:00:11.9]}
44... Nd3 {[%clk 0:00:19.7]} 45. Re6+ {[%clk 0:00:11.3]} 45... Kf7 {[%clk
0:00:20.3]} 46. Rd6 {[%clk 0:00:09.6]} 46... Nf2+ {[%clk 0:00:19.1]} 47. Kg2
{[%clk 0:00:10.2]} 47... Nxg4 {[%clk 0:00:19.8]} 48. b6 {[%clk 0:00:10.9]} 48...
Ne5 {[%clk 0:00:18.7]} 49. c5 {[%clk 0:00:11.2]} 49... g4 {[%clk 0:00:18.3]} 50.
Rd8 {[%clk 0:00:03.7]} 50... Rb5 {[%clk 0:00:16.7]} 51. Rc8 {[%clk 0:00:04]}
51... Ke6 {[%clk 0:00:16.9]} 52. Rc7 {[%clk 0:00:04.4]} 52... Kd5 {[%clk
0:00:17]} 53. Kg3 {[%clk 0:00:05]} 53... Rb3+ {[%clk 0:00:14.2]} 54. Kf4 {[%clk
0:00:04.1]} 54... g3 {[%clk 0:00:13]} 55. Rg7 {[%clk 0:00:01.7]} 55... Rf3+
{[%clk 0:00:11.8]} 56. Kg5 {[%clk 0:00:02.3]} 56... g2 {[%clk 0:00:12.4]} 57.
Kh4 {[%clk 0:00:02.9]} 57... Rb3 {[%clk 0:00:07.8]} 58. Rxg2 {[%clk 0:00:02.9]}
58... Kxc5 {[%clk 0:00:07.8]} 59. Re2 {[%clk 0:00:03]} 59... Nf3+ {[%clk
0:00:06.7]} 60. Kg4 {[%clk 0:00:02.9]} 60... Nd4 {[%clk 0:00:07.6]} 61. Rd2
{[%clk 0:00:02.3]} 61... Rxb6 {[%clk 0:00:07.3]} 62. Kf4 {[%clk 0:00:02.9]}
62... Re6 {[%clk 0:00:06.9]} 63. Rd1 {[%clk 0:00:03]} 63... Kd5 {[%clk
0:00:07.3]} 64. Rb1 {[%clk 0:00:03.5]} 64... Re4+ {[%clk 0:00:07.7]} 65. Kg3
{[%clk 0:00:04.1]} 65... Re8 {[%clk 0:00:08.3]} 66. Rd1 {[%clk 0:00:04.3]} 66...
Rf8 {[%clk 0:00:07.5]} 67. Rb1 {[%clk 0:00:04.1]} 67... Ne2+ {[%clk 0:00:06.8]}
68. Kg4 {[%clk 0:00:04]} 68... Ke4 {[%clk 0:00:07.3]} 69. Rb4+ {[%clk
0:00:04.2]} 69... Nd4 {[%clk 0:00:07.8]} 70. Kg5 {[%clk 0:00:04.9]} 70... Rf1
{[%clk 0:00:06.7]} 71. Ra4 {[%clk 0:00:05.2]} 71... Ke5 {[%clk 0:00:06.8]} 72.
Ra5+ {[%clk 0:00:04.8]} 72... Ke4 {[%clk 0:00:07.4]} 73. Ra4 {[%clk 0:00:05.5]}
73... Rf5+ {[%clk 0:00:06.8]} 74. Kg4 {[%clk 0:00:05.7]} 74... Rf1 {[%clk
0:00:07.2]} 75. Kg5 {[%clk 0:00:06.3]} 1/2-1/2